{"text_format":"1","workbook":"xlsx","n_sheets":2,"sheets":["Pasiūlymas","Subtiekėjai ir priedai"],"not_rendered":{"charts":0,"images":0,"macros":1,"external_links":0,"defined_names":0,"comments":0,"pivot_tables":0},"unopened":[],"bounds":{"document_bytes":16777216,"sheet_cells":100000,"rows_first":2000,"rows_last":500,"rows_between":2000,"halvings":0,"cell_chars":16384,"cell_head_chars":4096},"cells_cut":0,"cells_raw":0,"read":"whole","date_system":"1900"}

{"sheet":"Pasiūlymas","index":0,"n_rows":233,"n_cols":7,"rows_kept":233,"cut":false,"hidden":false,"merged":[[27,0,27,5],[28,0,28,5],[24,0,24,5],[25,0,25,5],[26,0,26,5],[18,0,18,1],[18,2,18,5],[23,0,23,5],[19,0,19,1],[20,0,20,1],[19,2,19,5],[20,2,20,5],[22,0,22,5],[29,0,29,2],[29,3,29,5],[11,0,11,1],[11,2,11,5],[12,0,12,1],[12,2,12,5],[13,0,13,1],[13,2,13,5],[14,0,14,1],[14,2,14,5],[15,0,15,1],[15,2,15,5],[16,0,16,1],[16,2,16,5],[17,0,17,1],[17,2,17,5]]}
[]
["PIRKIMO SĄLYGŲ PRIEDAS \"PASIŪLYMŲ FORMA\""]
[]
["MEDIKAMENTŲ PIRKIMAS"]
[]
["Kam:","VšĮ LSMU Kauno ligoninė"]
[]
["Data:","2022-11-22"]
["Nr.:","22/11/22"]
["Vieta:","Klonėnų vs.1, Šrivintų r. sav., 19156"]
[]
["Tiekėjo pavadinimas / Ūkio subjektų grupės nariai:",null,"UAB Entafarma"]
["Tiekėjo kodas (-ai):",null,174443844]
["Tiekėjo adresas (-ai):",null,"Klonėnų vs.1, Šrivintų r. sav., 19156"]
["Tiekėjo PVM mokėtojo kodas(-ai):",null,"LT744438415"]
["Tiekėjo / Ūkio subjektų grupės atsakingo partnerio sąskaitos numeris, banko pavadinimas ir banko kodas (-ai):",null,"AB \"Swedbank\"  bankas, b.k. kodas 73000, A/s LT79 7300 0101 6149 4031"]
["Asmens atsakingo už pasiūlymą vardas, pavardė:",null,"Aurimas Kirkliauskas"]
["Asmens atsakingo už pasiūlymą telefono numeris, el. pašto adresas:",null,"8-618 82684, aurimas.kirkliauskas@entafarma.lt "]
["Tiekėjo / Ūkio subjektų grupės, laimėjimo atveju, pasirašančio sutartį asmens vardas, pavardė, pareigos:",null,"Aurimas Kirkliauskas, konkursų skyriaus vadovas"]
["Tiekėjo / Ūkio subjektų grupės, laimėjimo atveju, už sutarties vykdymą atsakingo asmens vardas, pavardė, telefono numeris, elektroninio pašto adresas:",null,"Agnė Andrijauskienė, 8-612 49288, ligonines@entafarma.lt"]
["(1) Tiekėjo / Ūkio subjektų grupės narių, (2) ūkio subjektų, kurių pajėgumais remiamasi, ir (3) jei pašalinimo pagrindai taikomi visiems subtiekėjams - subtiekėjų, kolegialaus priežiūros organo (Stebėtojų tarybos) ir (ar) kolegialaus valdymo organo (Valdybos) narių sąrašas (jei sudaryta) ir (ar) asmuo, kuriam suteikti VPĮ 46 str. 2 d. 2 p. numatyti įgaliojimai",null,null,null,null,null,{"$f":"IF((SUMPRODUCT(--(C21=\"\"))>0), \"Privaloma užpildyti, kai taikomi pašalinimo pagrindai\", \"\")","v":"Privaloma užpildyti, kai taikomi pašalinimo pagrindai"}]
[]
["Tiekėjo patvirtinimai:"]
["1. Šiuo pasiūlymu pažymime, kad sutinkame su visomi pirkimo sąlygomis, nustatytomis:"]
["1.1. viešojo pirkimo dokumentuose"]
["1.2. kituose pirkimo dokumentuose (jų paaiškinimuose, papildymuose)."]
["2. Patvirtiname, kad informacija ir duomenys, pateikti pasiūlyme, yra teisingi ir apima viską, ko reikia tinkamam sutarties įvykdymui"]
["3. Patvirtiname, kad jei pasiūlyme nenurodyti kolegialaus priežiūros/valdymo organų nariai, šie organai juridiniuose asmenyse nėra sudaryti (taikoma, kai pirkimo dokumentuose nustatyti pašalinimo pagrindai)."]
["4. Pasiūlymas galioja iki termino, nustatyto pirkimo dokumentuose."]
["5. Tais atvejais, kai pagal galiojančius teisės aktus tiekėjui nereikia mokėti PVM, jis nurodo priežastis, dėl kurių PVM nemoka:"]
[]
[]
[]
["6. DALIS","AKTYVINTA ANGLIS 200 MG"]
[]
["Tiekėjo pasiūlymas:"]
["Nr.","Pavadinimas","Kiekis","Mato vienetas","Įkainis be PVM, Eur","Suma be PVM, Eur","Siūlomo produkto pavadinimas, dozė, kiekis pakuotėje, gamintojas. Būtina pažymėti, kuris vaistas yra  vardinis"]
["6.","Aktyvinta anglis 200 mg"]
["6.1.","Aktyvinta anglis 200 mg",1500,"tab./kaps.",5.5E-2,{"$f":"IF(ISBLANK(E39),\"\", PRODUCT(C39,E39))","v":82.5},"Carbovit 250mg tab. N100, Dossmegt (Vardinis)"]
[null,null,null,null,"Suma be PVM",{"$f":"IF(F39=\"\",\"\",SUM(F39:F39))","v":82.5},{"$f":"IF(F39=\"\",\"Neužpildytos visos objektų kainos\",\"\")","v":""}]
[null,null,null,null,"PVM suma",4.125]
[null,null,null,null,"Suma su PVM",{"$f":"IF(ISBLANK(F41), \"\", SUM(F40:F41))","v":86.625}]
[]
[]
[]
[]
[]
["8. DALIS","AMFOTERICINAS B LIPOSOMINIS 50MG"]
[]
["Tiekėjo pasiūlymas:"]
["Nr.","Pavadinimas","Kiekis","Mato vienetas","Įkainis be PVM, Eur","Suma be PVM, Eur","Siūlomo produkto pavadinimas, dozė, kiekis pakuotėje, gamintojas. Būtina pažymėti, kuris vaistas yra  vardinis"]
["8.","Amfotericinas B liposominis 50mg"]
["8.1.","Amfotericinas B liposominis 50mg",20,"amp.",112,{"$f":"IF(ISBLANK(E53),\"\", PRODUCT(C53,E53))","v":2240},"Ambilon (Liposomal Amphotericin) 50mg inj. N1, Celon Lab [Vardinis]"]
[null,null,null,null,"Suma be PVM",{"$f":"IF(F53=\"\",\"\",SUM(F53:F53))","v":2240},{"$f":"IF(F53=\"\",\"Neužpildytos visos objektų kainos\",\"\")","v":""}]
[null,null,null,null,"PVM suma",112]
[null,null,null,null,"Suma su PVM",{"$f":"IF(ISBLANK(F55), \"\", SUM(F54:F55))","v":2352}]
[]
[]
[]
[]
["11. DALIS","ASKORBO RŪGŠTIS 50MG/ML"]
[]
["Tiekėjo pasiūlymas:"]
["Nr.","Pavadinimas","Kiekis","Mato vienetas","Įkainis be PVM, Eur","Suma be PVM, Eur","Siūlomo produkto pavadinimas, dozė, kiekis pakuotėje, gamintojas. Būtina pažymėti, kuris vaistas yra  vardinis"]
["11.","Askorbo rūgštis 50mg/ml"]
["11.1.","Askorbo rūgštis 50mg/ml",2500,"amp.",0.47,{"$f":"IF(ISBLANK(E66),\"\", PRODUCT(C66,E66))","v":1175},"Askorbo rûgðtis Sopharma 50mg/ml injekcinis tirpalas 2ml N10, Sopharma"]
[null,null,null,null,"Suma be PVM",{"$f":"IF(F66=\"\",\"\",SUM(F66:F66))","v":1175},{"$f":"IF(F66=\"\",\"Neužpildytos visos objektų kainos\",\"\")","v":""}]
[null,null,null,null,"PVM suma",58.75]
[null,null,null,null,"Suma su PVM",{"$f":"IF(ISBLANK(F68), \"\", SUM(F67:F68))","v":1233.75}]
[]
[]
[]
["24. DALIS","CINKO OKSIDO TEPALAS 100MG/G"]
[]
["Tiekėjo pasiūlymas:"]
["Nr.","Pavadinimas","Kiekis","Mato vienetas","Įkainis be PVM, Eur","Suma be PVM, Eur","Siūlomo produkto pavadinimas, dozė, kiekis pakuotėje, gamintojas. Būtina pažymėti, kuris vaistas yra  vardinis"]
["24.","Cinko oksido tepalas 100mg/g"]
["24.1.","Cinko oksido tepalas 100mg/g",1200,"g",0.03,{"$f":"IF(ISBLANK(E78),\"\", PRODUCT(C78,E78))","v":36},"Tena Zinc Cream cinko tepalas 100ml N1, Essity"]
[null,null,null,null,"Suma be PVM",{"$f":"IF(F78=\"\",\"\",SUM(F78:F78))","v":36},{"$f":"IF(F78=\"\",\"Neužpildytos visos objektų kainos\",\"\")","v":""}]
[null,null,null,null,"PVM suma",1.8]
[null,null,null,null,"Suma su PVM",{"$f":"IF(ISBLANK(F80), \"\", SUM(F79:F80))","v":37.799999999999997}]
[]
[]
[]
["34. DALIS","DOXEPINAS 25 MG "]
[]
["Tiekėjo pasiūlymas:"]
["Nr.","Pavadinimas","Kiekis","Mato vienetas","Įkainis be PVM, Eur","Suma be PVM, Eur","Siūlomo produkto pavadinimas, dozė, kiekis pakuotėje, gamintojas. Būtina pažymėti, kuris vaistas yra  vardinis"]
["34.","Doxepinas 25 mg "]
["34.1.","Doxepinas 25 mg ",210,"kaps./tab.",0.98,{"$f":"IF(ISBLANK(E90),\"\", PRODUCT(C90,E90))","v":205.79999999999998},"Doxepin 25mg kapsulės N50, Pliva Krakow (Vardinis)"]
[null,null,null,null,"Suma be PVM",{"$f":"IF(F90=\"\",\"\",SUM(F90:F90))","v":205.79999999999998},{"$f":"IF(F90=\"\",\"Neužpildytos visos objektų kainos\",\"\")","v":""}]
[null,null,null,null,"PVM suma",10.29]
[null,null,null,null,"Suma su PVM",{"$f":"IF(ISBLANK(F92), \"\", SUM(F91:F92))","v":216.08999999999997}]
[]
["39. DALIS","FENILEFRINAS 10%  AKIŲ LAŠAI"]
[]
["Tiekėjo pasiūlymas:"]
["Nr.","Pavadinimas","Kiekis","Mato vienetas","Įkainis be PVM, Eur","Suma be PVM, Eur","Siūlomo produkto pavadinimas, dozė, kiekis pakuotėje, gamintojas. Būtina pažymėti, kuris vaistas yra  vardinis"]
["39.","Fenilefrinas 10%  akių lašai"]
["39.1.","Fenilefrinas 10%  akių lašai",150,"ml.",2.54,{"$f":"IF(ISBLANK(E100),\"\", PRODUCT(C100,E100))","v":381},"Fenefrin 10% akių lašai 10ml N1, Unimed Pharma (Vardinis)"]
[null,null,null,null,"Suma be PVM",{"$f":"IF(F100=\"\",\"\",SUM(F100:F100))","v":381},{"$f":"IF(F100=\"\",\"Neužpildytos visos objektų kainos\",\"\")","v":""}]
[null,null,null,null,"PVM suma",19.05]
[null,null,null,null,"Suma su PVM",{"$f":"IF(ISBLANK(F102), \"\", SUM(F101:F102))","v":400.05}]
[]
[]
["49. DALIS","HIDROCORTISONI 100 MG INJ/INF TIPALUI RUOŠTI"]
[]
["Tiekėjo pasiūlymas:"]
["Nr.","Pavadinimas","Kiekis","Mato vienetas","Įkainis be PVM, Eur","Suma be PVM, Eur","Siūlomo produkto pavadinimas, dozė, kiekis pakuotėje, gamintojas. Būtina pažymėti, kuris vaistas yra  vardinis"]
["49.","Hidrocortisoni 100 mg inj/inf tipalui ruošti"]
["49.1.","Hidrocortisoni 100 mg inj/inf tipalui ruošti",50,"amp.",1.18,{"$f":"IF(ISBLANK(E111),\"\", PRODUCT(C111,E111))","v":59},"Bitacort 100mg inj/inf N1, Lucid Pharmaceuticals [Vardinis]"]
[null,null,null,null,"Suma be PVM",{"$f":"IF(F111=\"\",\"\",SUM(F111:F111))","v":59},{"$f":"IF(F111=\"\",\"Neužpildytos visos objektų kainos\",\"\")","v":""}]
[null,null,null,null,"PVM suma",2.95]
[null,null,null,null,"Suma su PVM",{"$f":"IF(ISBLANK(F113), \"\", SUM(F112:F113))","v":61.95}]
[]
[]
[]
["65. DALIS","LORAZEPAM 4MG/ML INJ"]
[]
["Tiekėjo pasiūlymas:"]
["Nr.","Pavadinimas","Kiekis","Mato vienetas","Įkainis be PVM, Eur","Suma be PVM, Eur","Siūlomo produkto pavadinimas, dozė, kiekis pakuotėje, gamintojas. Būtina pažymėti, kuris vaistas yra  vardinis"]
["65.","Lorazepam 4mg/ml inj"]
["65.1.","Lorazepam 4mg/ml inj",1600,"amp.",4.7699999999999996,{"$f":"IF(ISBLANK(E123),\"\", PRODUCT(C123,E123))","v":7631.9999999999991},"LIREZID 4mg/ml injekcinis tirpalas N10, Medochemie"]
[null,null,null,null,"Suma be PVM",{"$f":"IF(F123=\"\",\"\",SUM(F123:F123))","v":7631.9999999999991},{"$f":"IF(F123=\"\",\"Neužpildytos visos objektų kainos\",\"\")","v":""}]
[null,null,null,null,"PVM suma",381.6]
[null,null,null,null,"Suma su PVM",{"$f":"IF(ISBLANK(F125), \"\", SUM(F124:F125))","v":8013.5999999999995}]
[]
[]
["69. DALIS","MENTOLIO TIRPALAS IZOVALERIJONO RŪGŠTIES METILO ESTERYJE 60MG"]
[]
["Tiekėjo pasiūlymas:"]
["Nr.","Pavadinimas","Kiekis","Mato vienetas","Įkainis be PVM, Eur","Suma be PVM, Eur","Siūlomo produkto pavadinimas, dozė, kiekis pakuotėje, gamintojas. Būtina pažymėti, kuris vaistas yra  vardinis"]
["69.","Mentolio tirpalas izovalerijono rūgšties metilo esteryje 60mg"]
["69.1.","Mentolio tirpalas izovalerijono rūgšties metilo esteryje 60mg",1200,"tab.",0.03,{"$f":"IF(ISBLANK(E134),\"\", PRODUCT(C134,E134))","v":36},"Validol MED tabletės N20, Latvija"]
[null,null,null,null,"Suma be PVM",{"$f":"IF(F134=\"\",\"\",SUM(F134:F134))","v":36},{"$f":"IF(F134=\"\",\"Neužpildytos visos objektų kainos\",\"\")","v":""}]
[null,null,null,null,"PVM suma",1.8]
[null,null,null,null,"Suma su PVM",{"$f":"IF(ISBLANK(F136), \"\", SUM(F135:F136))","v":37.799999999999997}]
[]
[]
[]
[]
["83. DALIS","NATRIO NITROPRUSIDAS 30 MG MILTELIAI IR TIRPIKLIS INFUZINIAM TIRPALUI"]
[]
["Tiekėjo pasiūlymas:"]
["Nr.","Pavadinimas","Kiekis","Mato vienetas","Įkainis be PVM, Eur","Suma be PVM, Eur","Siūlomo produkto pavadinimas, dozė, kiekis pakuotėje, gamintojas. Būtina pažymėti, kuris vaistas yra  vardinis"]
["83.","Natrio nitroprusidas 30 mg milteliai ir tirpiklis infuziniam tirpalui"]
["83.1.","Natrio nitroprusidas 30 mg milteliai ir tirpiklis infuziniam tirpalui",40,"fl.",6.55,{"$f":"IF(ISBLANK(E147),\"\", PRODUCT(C147,E147))","v":262},"Nipress 50mg in amp. N1, Samarth [Vardinis]"]
[null,null,null,null,"Suma be PVM",{"$f":"IF(F147=\"\",\"\",SUM(F147:F147))","v":262},{"$f":"IF(F147=\"\",\"Neužpildytos visos objektų kainos\",\"\")","v":""}]
[null,null,null,null,"PVM suma",13.1]
[null,null,null,null,"Suma su PVM",{"$f":"IF(ISBLANK(F149), \"\", SUM(F148:F149))","v":275.10000000000002}]
[]
[]
[]
["100. DALIS","SOTALOLUM 80 MG"]
[]
["Tiekėjo pasiūlymas:"]
["Nr.","Pavadinimas","Kiekis","Mato vienetas","Įkainis be PVM, Eur","Suma be PVM, Eur","Siūlomo produkto pavadinimas, dozė, kiekis pakuotėje, gamintojas. Būtina pažymėti, kuris vaistas yra  vardinis"]
["100.","Sotalolum 80 mg"]
["100.1.","Sotalolum 80 mg",100,"tab.",1.66,{"$f":"IF(ISBLANK(E159),\"\", PRODUCT(C159,E159))","v":166},"Sotahexal 80mg tabletės N100, Hexal [Vardinis] "]
[null,null,null,null,"Suma be PVM",{"$f":"IF(F159=\"\",\"\",SUM(F159:F159))","v":166},{"$f":"IF(F159=\"\",\"Neužpildytos visos objektų kainos\",\"\")","v":""}]
[null,null,null,null,"PVM suma",8.3000000000000007]
[null,null,null,null,"Suma su PVM",{"$f":"IF(ISBLANK(F161), \"\", SUM(F160:F161))","v":174.3}]
[]
[]
["105. DALIS","TIRPALAS NEIGIAMAI ALERGENŲ KONTROLEI 2,5 ML ±0,5ML"]
[]
["Tiekėjo pasiūlymas:"]
["Nr.","Pavadinimas","Kiekis","Mato vienetas","Įkainis be PVM, Eur","Suma be PVM, Eur","Siūlomo produkto pavadinimas, dozė, kiekis pakuotėje, gamintojas. Būtina pažymėti, kuris vaistas yra  vardinis"]
["105.","Tirpalas neigiamai alergenų kontrolei 2,5 ml ±0,5ml"]
["105.1.","Tirpalas neigiamai alergenų kontrolei 2,5 ml ±0,5ml",2,"fl.",28,{"$f":"IF(ISBLANK(E170),\"\", PRODUCT(C170,E170))","v":56},"Skin Prick Test bottle x 2,5ml + 0,5ml N1 (K100), Inmunotek [Vardinis]"]
[null,null,null,null,"Suma be PVM",{"$f":"IF(F170=\"\",\"\",SUM(F170:F170))","v":56},{"$f":"IF(F170=\"\",\"Neužpildytos visos objektų kainos\",\"\")","v":""}]
[null,null,null,null,"PVM suma",2.8]
[null,null,null,null,"Suma su PVM",{"$f":"IF(ISBLANK(F172), \"\", SUM(F171:F172))","v":58.8}]
[]
[]
[]
["106. DALIS","TIRPALAS ODOS DŪRIMO TESTUI  3ML ±  0,5ML – FENOLINIS GLICEROLIS"]
[]
["Tiekėjo pasiūlymas:"]
["Nr.","Pavadinimas","Kiekis","Mato vienetas","Įkainis be PVM, Eur","Suma be PVM, Eur","Siūlomo produkto pavadinimas, dozė, kiekis pakuotėje, gamintojas. Būtina pažymėti, kuris vaistas yra  vardinis"]
["106.","Tirpalas odos dūrimo testui  3ml ±  0,5ml – Fenolinis glicerolis"]
["106.1.","Tirpalas odos dūrimo testui  3ml ±  0,5ml – Fenolinis glicerolis",2,"fl.",28,{"$f":"IF(ISBLANK(E182),\"\", PRODUCT(C182,E182))","v":56},"Skin Prick Test bottle x 2,5ml + 0,5ml N1 (K200), Inmunotek [Vardinis]"]
[null,null,null,null,"Suma be PVM",{"$f":"IF(F182=\"\",\"\",SUM(F182:F182))","v":56},{"$f":"IF(F182=\"\",\"Neužpildytos visos objektų kainos\",\"\")","v":""}]
[null,null,null,null,"PVM suma",2.8]
[null,null,null,null,"Suma su PVM",{"$f":"IF(ISBLANK(F184), \"\", SUM(F183:F184))","v":58.8}]
[]
[]
[]
["123. DALIS","TIRPALAS ODOS DŪRIMO TESTUI 3ML ±0,5ML – DERM PTERONYSSINUS (NAMŲ ERKĖ)"]
[]
["Tiekėjo pasiūlymas:"]
["Nr.","Pavadinimas","Kiekis","Mato vienetas","Įkainis be PVM, Eur","Suma be PVM, Eur","Siūlomo produkto pavadinimas, dozė, kiekis pakuotėje, gamintojas. Būtina pažymėti, kuris vaistas yra  vardinis"]
["123.","Tirpalas odos dūrimo testui 3ml ±0,5ml – Derm Pteronyssinus (namų erkė)"]
["123.1.","Tirpalas odos dūrimo testui 3ml ±0,5ml – Derm Pteronyssinus (namų erkė)",2,"fl.",28,{"$f":"IF(ISBLANK(E194),\"\", PRODUCT(C194,E194))","v":56},"Skin Prick Test bottle x 2,5ml + 0,5ml N1 (M601), Inmunotek [Vardinis]"]
[null,null,null,null,"Suma be PVM",{"$f":"IF(F194=\"\",\"\",SUM(F194:F194))","v":56},{"$f":"IF(F194=\"\",\"Neužpildytos visos objektų kainos\",\"\")","v":""}]
[null,null,null,null,"PVM suma",2.8]
[null,null,null,null,"Suma su PVM",{"$f":"IF(ISBLANK(F196), \"\", SUM(F195:F196))","v":58.8}]
[]
[]
[]
["124. DALIS","TIRPALAS ODOS DŪRIMO TESTUI 3ML ±0,5ML – DERM. FARINAE (NAMŲ ERKĖ)"]
[]
["Tiekėjo pasiūlymas:"]
["Nr.","Pavadinimas","Kiekis","Mato vienetas","Įkainis be PVM, Eur","Suma be PVM, Eur","Siūlomo produkto pavadinimas, dozė, kiekis pakuotėje, gamintojas. Būtina pažymėti, kuris vaistas yra  vardinis"]
["124.","Tirpalas odos dūrimo testui 3ml ±0,5ml – Derm. Farinae (namų erkė)"]
["124.1.","Tirpalas odos dūrimo testui 3ml ±0,5ml – Derm. Farinae (namų erkė)",2,"fl.",28,{"$f":"IF(ISBLANK(E206),\"\", PRODUCT(C206,E206))","v":56},"Skin Prick Test bottle x 2,5ml + 0,5ml N1 (M602), Inmunotek [Vardinis]"]
[null,null,null,null,"Suma be PVM",{"$f":"IF(F206=\"\",\"\",SUM(F206:F206))","v":56},{"$f":"IF(F206=\"\",\"Neužpildytos visos objektų kainos\",\"\")","v":""}]
[null,null,null,null,"PVM suma",2.8]
[null,null,null,null,"Suma su PVM",{"$f":"IF(ISBLANK(F208), \"\", SUM(F207:F208))","v":58.8}]
[]
[]
[]
["131. DALIS","TORAZEMIDAS 5 MG/ML  4 ML "]
[]
["Tiekėjo pasiūlymas:"]
["Nr.","Pavadinimas","Kiekis","Mato vienetas","Įkainis be PVM, Eur","Suma be PVM, Eur","Siūlomo produkto pavadinimas, dozė, kiekis pakuotėje, gamintojas. Būtina pažymėti, kuris vaistas yra  vardinis"]
["131.","Torazemidas 5 mg/ml  4 ml "]
["131.1.","Torazemidas 5 mg/ml  4 ml ",200,"amp.",1.008,{"$f":"IF(ISBLANK(E218),\"\", PRODUCT(C218,E218))","v":201.6},"Trifas 20mg/4ml inj.N5, Berlin Chemie"]
[null,null,null,null,"Suma be PVM",{"$f":"IF(F218=\"\",\"\",SUM(F218:F218))","v":201.6},{"$f":"IF(F218=\"\",\"Neužpildytos visos objektų kainos\",\"\")","v":""}]
[null,null,null,null,"PVM suma",10.08]
[null,null,null,null,"Suma su PVM",{"$f":"IF(ISBLANK(F220), \"\", SUM(F219:F220))","v":211.68}]
[]
[]
[]
["132. DALIS","TRANEKSAMO RŪGŠTIS 100 MG/ML  INJEKCINIS TIRPALAS 5 ML"]
[]
["Tiekėjo pasiūlymas:"]
["Nr.","Pavadinimas","Kiekis","Mato vienetas","Įkainis be PVM, Eur","Suma be PVM, Eur","Siūlomo produkto pavadinimas, dozė, kiekis pakuotėje, gamintojas. Būtina pažymėti, kuris vaistas yra  vardinis"]
["132.","Traneksamo rūgštis 100 mg/ml  injekcinis tirpalas 5 ml"]
["132.1.","Traneksamo rūgštis 100 mg/ml  injekcinis tirpalas 5 ml",2500,"amp.",0.77,{"$f":"IF(ISBLANK(E230),\"\", PRODUCT(C230,E230))","v":1925},"Tranexamsaure Eberth 100mg/ml inj./inf. tirpalas 5ml amp. N10, Niromed"]
[null,null,null,null,"Suma be PVM",{"$f":"IF(F230=\"\",\"\",SUM(F230:F230))","v":1925},{"$f":"IF(F230=\"\",\"Neužpildytos visos objektų kainos\",\"\")","v":""}]
[null,null,null,null,"PVM suma",96.25]
[null,null,null,null,"Suma su PVM",{"$f":"IF(ISBLANK(F232), \"\", SUM(F231:F232))","v":2021.25}]

{"sheet":"Subtiekėjai ir priedai","index":1,"n_rows":82,"n_cols":11,"rows_kept":82,"cut":false,"hidden":false,"merged":[[14,0,14,1],[13,0,13,1],[12,0,12,1],[14,2,14,4],[13,2,13,4],[12,2,12,4],[1,0,2,10],[16,0,16,9],[7,5,7,7],[6,5,6,7],[7,8,7,9],[6,8,6,9],[7,0,7,1],[6,0,6,1],[7,2,7,4],[6,2,6,4],[5,2,5,4],[5,8,5,9],[4,8,4,9],[9,0,9,10],[11,8,11,9],[11,5,11,7],[4,5,4,7],[4,2,4,4],[18,0,18,9],[20,7,20,9],[20,1,20,6],[4,0,4,1],[5,5,5,7],[5,0,5,1],[11,2,11,4],[11,0,11,1],[14,5,14,7],[13,5,13,7],[12,5,12,7],[14,8,14,9],[13,8,13,9],[12,8,12,9],[23,7,23,9],[22,7,22,9],[21,7,21,9],[27,7,27,9],[26,7,26,9],[25,7,25,9],[24,7,24,9],[29,0,29,9],[34,4,34,9],[32,4,32,9],[34,0,34,3],[32,0,32,3],[24,1,24,6],[23,1,23,6],[22,1,22,6],[21,1,21,6],[27,1,27,6],[26,1,26,6],[25,1,25,6]]}
[]
["Ūkio subjektai (įskaitant kvazisubtiekėjus - fiziniai asmenys, kuriuos ketinama įdarbinti pirkimo laimėjimo atveju), kurių pajėgumais tiekėjas remiasi, kad atitiktų keliamus kvalifikacijos reikalavimus:"]
[]
[]
["Pavadinimas*",null,"Kodas, adresas",null,null,"Perduodami įsipareigojimai",null,null,"Perduodamų įsipareigojimų dalis nuo visos pirkimo sutarties (Eur arba %)",null,"Kval. Reikalavimo Nr."]
[]
[]
[]
[]
["Subtiekėjams / subteikėjams / subrangovams numatomos perduoti veiklos (privaloma nurodyti) ir šių ūkio subjektų pavadinimai (jei žinomi):"]
[]
["Pavadinimas",null,"Kodas, adresas",null,null,"Perduodama veikla*",null,null,"Perduodamos veiklos dalis nuo visos pirkimo sutarties (Eur arba %)"]
[]
[]
[]
[]
[]
[]
["Kartu su pasiūlymu pateikiami šie dokumentai:"]
[]
["Nr.","Dokumento  pavadinimas",null,null,null,null,null,"Dokumentas yra konfidencialus? Taip/Ne"]
[1,"Jungtinės veiklos kopija (jei taikoma)"]
[2,"Europos bendrasis viešųjų pirkimų dokumentas",null,null,null,null,null,14]
[3,"Subtiekimo sutartis, ketinimų protokolas, preliminarios sutartys ar kiti dokumentai, patvirtinantys, kad laimėjus pirkimą tiekėjui bus prieinami kitų ūkio subjektų ištekliai (jei pasitelkiami kvalifikacijos atitikimui)"]
[]
[]
[]
[]
[]
["Pasiūlyme nurodyta Prekės kaina, išskyrus jos sudedamąsias dalis, subtiekėjai, taip pat kita informacija, kuri teisės aktų nustatyta tvarka turi būti skelbiama arba kitokiu būdu viešai prieinama visuomenei, nėra laikoma konfidencialia informacija. Konfidencialią informaciją sudaro, visų pirma, komercinė (gamybinė) paslaptis ir konfidencialieji pasiūlymų aspektai. Informacija, kurią viešai skelbti įpareigoja Lietuvos Respublikos įstatymai, negali būti tiekėjo nurodoma kaip konfidenciali, todėl, tiekėjui nurodžius tokią informaciją kaip konfidencialią, perkančioji organizacija turi teisę ją skelbti. Jei tiekėjas nenurodo konfidencialios informacijos, laikoma, kad konfidencialios informacijos tiekėjo pasiūlyme nėra. Vadovaujantis Informacijos viešinimo Centrinėje viešųjų pirkimų informacinėje sistemoje tvarkos aprašu, patvirtintu Viešųjų pirkimų tarnybos direktoriaus 2017 m. birželio 19 d. įsakymu Nr. 1S-91 „Dėl Informacijos viešinimo Centrinėje viešųjų pirkimų informacinėje sistemoje tvarkos aprašo patvirtinimo“, perkančioji organizacija laimėjusio dalyvio pasiūlymą, išskyrus informaciją, kurią tiekėjas nurodė kaip konfidencialią, paskelbs CVP IS."]
[]
[]
["Tiekėjo arba jo įgalioto asmens pareigų pavadinimas:",null,null,null,"Konkursų skyriaus vadovas"]
[]
["Pasirašančio asmens vardas ir pavardė:",null,null,null,"Aurimas Kirkliauskas"]
[]
[]
[]
[]
[]
[]
[]
[]
[]
[]
[]
[]
[]
[]
[]
[]
[]
[]
[]
[]
[]
[]
[]
[]
[]
[]
[]
[]
[]
[]
[]
[]
[]
[]
[]
[]
[]
[]
[]
[]
[]
[]
[]
[]
[]
[]
["6874-3 2022-10-14 10:13:51"]